[Event "African Games-chT 2019"]
[Site "Casablanca"]
[Date "2019.08.25"]
[Round "8.18"]
[White "Tissir, Mohamed"]
[Black "Silva, David"]
[Result "0-1"]
[ECO "B08"]
[WhiteElo "2379"]
[BlackElo "2239"]
[Annotator "ChessBase"]
[PlyCount "70"]
[EventDate "2019.08.24"]
[EventType "team-tourn"]
[EventCountry "MAR"]
[SourceTitle "playchess.com"]
[Source "ChessBase"]
[SourceQuality "1"]
[WhiteTeam "Morocco"]
[BlackTeam "Angola"]
[WhiteTeamCountry "MAR"]
[BlackTeamCountry "ANG"]
[TimeControl "900+10"]

1. d4 {[%emt 0:00:00]} Nf6 {[%emt 0:00:31]} 2. Nf3 {[%emt 0:00:00]} g6 {[%emt 0:00:08]} 3. Nc3 {[%emt 0:00:08]} Bg7 {[%emt 0:00:02]} 4. e4 {[%emt 0:00:02]} d6 {[%emt 0:00:02]} 5. Be3 {[%emt 0:00:17]} c6 {[%emt 0:00:16]} 6. Bd3 {[%emt 0:00:04]} O-O {[%emt 0:00:04]} 7. h3 {[%emt 0:00:03]} b5 {[%emt 0:00:05]} 8. Ne2 {[%emt 0:00:55]} Nbd7 {[%emt 0:00:11]} 9. Ng3 {[%emt 0:00:04]} e5 {[%emt 0:00:02]} 10. c3 {[%emt 0:00:07]} a6 {[%emt 0:00:08]} 11. O-O {[%emt 0:00:19]} Bb7 {[%emt 0:00:04]} 12. Qd2 {[%emt 0:00:01]} Qe7 {[%emt 0:00:34]} 13. Rae1 {[%emt 0:00:01]} c5 {[%emt 0:00:02]} 14. d5 {[%emt 0:00:00]} c4 {[%emt 0:00:10]} 15. Bc2 {[%emt 0:00:06]} Ne8 {[%emt 0:01:22]} 16. h4 {[%emt 0:00:34]} Ndf6 {[%emt 0:00:35]} 17. Bg5 {[%emt 0:00:02]} Qc7 {[%emt 0:00:01]} 18. h5 {[%emt 0:00:13]} Ng4 {[%emt 0:00:12]} 19. h6 {[%emt 0:03:08]} Bh8 {[%emt 0:00:34]} 20. Qd1 {[%emt 0:00:01]} Bf6 {[%emt 0:00:42]} 21. Bxf6 {[%emt 0:00:56]} Nexf6 {[%emt 0:00:04]} 22. Qd2 {[%emt 0:00:04]} Bc8 {[%emt 0:00:39]} 23. Qg5 {[%emt 0:00:05]} Kh8 {[%emt 0:00:18]} 24. Nh2 {[%emt 0:00:39]} Qd8 {[%emt 0:00:11]} 25. Nf5 {[%emt 0:00:46]} Nxh2 {[%emt 0:00:20]} 26. f4 {[%emt 0:00:56]} Nfg4 {[%emt 0:00:27]} 27. Ne7 {[%emt 0:00:37]} f6 {[%emt 0:00:12]} 28. Nxg6+ {[%emt 0:00:10]} hxg6 {[%emt 0:00:02]} 29. Qxg6 {[%emt 0:00:00]} Rg8 {[%emt 0:00:11]} 30. Qh5 {[%emt 0:00:02]} Nxf1 {[%emt 0:00:08]} 31. Rxf1 {[%emt 0:00:01]} Qe8 {[%emt 0:00:10]} 32. Qh4 {[%emt 0:00:01]} Qg6 {[%emt 0:00:03]} 33. fxe5 {[%emt 0:00:06]} dxe5 {[%emt 0:00:03]} 34. Rf3 {[%emt 0:00:13]} Ra7 {[%emt 0:00:08]} 35. Rg3 {[%emt 0:00:12]} Rh7 {[%emt 0:00:04]} 0-1

[Event "African Games-chT 2019"]
[Site "Casablanca"]
[Date "2019.08.25"]
[Round "8.19"]
[White "Caxita, Esperanca"]
[Black "Mayar ElIdrissi, Firdaous"]
[Result "0-1"]
[ECO "B21"]
[WhiteElo "1803"]
[BlackElo "1760"]
[Annotator "NA"]
[PlyCount "96"]
[EventDate "2019.08.24"]
[EventType "team-tourn"]
[EventCountry "MAR"]
[SourceTitle "playchess.com"]
[Source "ChessBase"]
[SourceQuality "1"]
[WhiteTeam "Angola"]
[BlackTeam "Morocco"]
[WhiteTeamCountry "ANG"]
[BlackTeamCountry "MAR"]
[TimeControl "900+10"]

1. e4 {[%emt 0:00:00]} c5 {[%emt 0:00:00]} 2. f4 {[%emt 0:00:00]} e6 {[%emt 0:00:15]} 3. Nf3 {[%emt 0:00:11]} g6 {[%emt 0:00:05]} 4. d4 {[%emt 0:00:04]} cxd4 {[%emt 0:01:01]} 5. Qxd4 {[%emt 0:00:01]} Qf6 {[%emt 0:00:37]} 6. Nc3 {[%emt 0:00:36]} Qxd4 {[%emt 0:00:46]} 7. Nxd4 {[%emt 0:00:02]} a6 8. Be3 {[%emt 0:00:09]} Bg7 {[%emt 0:01:02]} 9. O-O-O {[%emt 0:00:09]} Ne7 {[%emt 0:00:30]} 10. h3 {[%emt 0:00:15]} Nbc6 {[%emt 0:00:31]} 11. Na4 {[%emt 0:01:13]} b5 {[%emt 0:02:06]} 12. Nb6 {[%emt 0:01:02]} Rb8 {[%emt 0:00:12]} 13. Nxc8 {[%emt 0:00:04]} Rxc8 {[%emt 0:00:02]} 14. Kb1 {[%emt 0:00:38]} d5 {[%emt 0:00:03]} 15. e5 {[%emt 0:03:04]} O-O {[%emt 0:02:46]} 16. a4 {[%emt 0:01:41]} Nxd4 {[%emt 0:00:15]} 17. Bxd4 bxa4 {[%emt 0:01:01]} 18. Bxa6 {[%emt 0:00:05]} Ra8 {[%emt 0:00:02]} 19. Bb5 {[%emt 0:00:27]} Ra5 {[%emt 0:00:11]} 20. Bd3 {[%emt 0:01:17]} Rb8 {[%emt 0:00:01]} 21. Bc3 {[%emt 0:00:17]} Rc5 {[%emt 0:00:03]} 22. Ka2 {[%emt 0:00:43]} Nc6 {[%emt 0:00:48]} 23. Ka3 {[%emt 0:00:27]} Bf8 {[%emt 0:02:00]} 24. Ka2 {[%emt 0:00:08]} a3 {[%emt 0:00:40]} 25. Bd2 {[%emt 0:02:48]} Rxb2+ {[%emt 0:00:15]} 26. Ka1 {[%emt 0:00:10]} Nd4 {[%emt 0:00:46]} 27. Rc1 {[%emt 0:02:03]} Nxc2+ {[%emt 0:00:59]} 28. Bxc2 {[%emt 0:00:03]} Rcxc2 {[%emt 0:00:05]} 29. Rxc2 {[%emt 0:00:02]} Rxc2 {[%emt 0:00:01]} 30. Rd1 {[%emt 0:00:02]} h5 31. g4 {[%emt 0:00:17]} hxg4 {[%emt 0:00:44]} 32. hxg4 {[%emt 0:00:03]} Bc5 {[%emt 0:00:00]} 33. Bc1 {[%emt 0:00:32]} a2 {[%emt 0:01:06]} 34. g5 {[%emt 0:00:32]} Bb4 {[%emt 0:00:38]} 35. Bb2 {[%emt 0:00:31]} Rf2 {[%emt 0:00:21]} 36. Rd4 {[%emt 0:00:43]} Be1 {[%emt 0:00:46]} 37. Rd1 {[%emt 0:00:37]} Ba5 {[%emt 0:00:06]} 38. Rd4 {[%emt 0:00:02]} Bb6 {[%emt 0:00:05]} 39. Rb4 {[%emt 0:00:20]} Be3 {[%emt 0:00:03]} 40. Kxa2 {[%emt 0:00:10]} Bxf4 {[%emt 0:00:07]} 41. Kb3 {[%emt 0:00:08]} Bxg5 {[%emt 0:00:05]} 42. Rb8+ {[%emt 0:00:01]} Kg7 {[%emt 0:00:00]} 43. Ba3 {[%emt 0:00:01]} Rf3+ {[%emt 0:00:02]} 44. Ka4 {[%emt 0:00:01]} Re3 {[%emt 0:00:05]} 45. Bf8+ {[%emt 0:00:02]} Kh7 {[%emt 0:00:05]} 46. Bd6 {[%emt 0:00:02]} Bf4 {[%emt 0:00:13]} 47. Rb7 {[%emt 0:00:05]} Kg7 {[%emt 0:00:10]} 48. Bc5 {[%emt 0:00:03]} Re4+ {[%emt 0:00:04]} 0-1

[Event "African Games-chT 2019"]
[Site "Casablanca"]
[Date "2019.08.25"]
[Round "8.20"]
[White "Rania, Sbai"]
[Black "Pires, Luzia"]
[Result "1-0"]
[ECO "D45"]
[WhiteElo "1853"]
[BlackElo "1924"]
[Annotator "NA"]
[PlyCount "79"]
[EventDate "2019.08.24"]
[EventType "team-tourn"]
[EventCountry "MAR"]
[SourceTitle "playchess.com"]
[Source "ChessBase"]
[SourceQuality "1"]
[WhiteTeam "Morocco"]
[BlackTeam "Angola"]
[WhiteTeamCountry "MAR"]
[BlackTeamCountry "ANG"]
[TimeControl "900+10"]

1. d4 {[%emt 0:00:00]} d5 {[%emt 0:00:00]} 2. c4 {[%emt 0:00:00]} c6 {[%emt 0:00:00]} 3. Nc3 {[%emt 0:00:01]} e6 {[%emt 0:00:00]} 4. Nf3 {[%emt 0:00:07]} Nf6 {[%emt 0:00:08]} 5. e3 {[%emt 0:00:06]} Bd6 {[%emt 0:00:20]} 6. Qc2 {[%emt 0:00:17]} O-O {[%emt 0:00:12]} 7. Bd3 {[%emt 0:00:59]} h6 {[%emt 0:00:01]} 8. e4 {[%emt 0:02:04]} dxe4 {[%emt 0:00:14]} 9. Nxe4 {[%emt 0:00:01]} Nxe4 {[%emt 0:00:27]} 10. Bxe4 {[%emt 0:00:06]} Bb4+ {[%emt 0:00:15]} 11. Bd2 {[%emt 0:00:03]} Bxd2+ {[%emt 0:00:13]} 12. Qxd2 {[%emt 0:00:01]} Nd7 {[%emt 0:00:08]} 13. O-O {[%emt 0:00:04]} Nf6 {[%emt 0:01:23]} 14. Bc2 {[%emt 0:00:07]} Qb6 {[%emt 0:00:27]} 15. Qc3 {[%emt 0:00:15]} c5 {[%emt 0:00:15]} 16. dxc5 {[%emt 0:02:37]} Qxc5 {[%emt 0:00:04]} 17. b4 {[%emt 0:00:05]} Qc7 {[%emt 0:00:09]} 18. c5 {[%emt 0:00:48]} Bd7 {[%emt 0:00:18]} 19. Ne5 {[%emt 0:00:54]} Bb5 {[%emt 0:00:26]} 20. Rfe1 {[%emt 0:00:09]} Nd5 {[%emt 0:00:04]} 21. Qb3 {[%emt 0:00:36]} Rfd8 {[%emt 0:00:52]} 22. a4 Be8 {[%emt 0:00:13]} 23. Rac1 {[%emt 0:00:58]} Qe7 {[%emt 0:02:50]} 24. Nc4 {[%emt 0:01:45]} Qg5 {[%emt 0:01:20]} 25. Nd6 {[%emt 0:01:51]} b6 {[%emt 0:03:29]} 26. Ne4 {[%emt 0:01:32]} Qe7 {[%emt 0:00:57]} 27. Nd6 {[%emt 0:00:49]} Qg5 {[%emt 0:00:26]} 28. Ne4 {[%emt 0:00:01]} Qh5 {[%emt 0:00:19]} 29. Bd1 {[%emt 0:00:36]} Qg6 {[%emt 0:00:33]} 30. c6 {[%emt 0:00:13]} Rac8 {[%emt 0:00:26]} 31. b5 {[%emt 0:00:01]} Nf4 {[%emt 0:00:07]} 32. Bf3 {[%emt 0:01:43]} Nd3 {[%emt 0:00:08]} 33. Red1 {[%emt 0:01:11]} Nxc1 {[%emt 0:00:15]} 34. Rxd8 {[%emt 0:00:23]} Nxb3 {[%emt 0:01:15]} 35. Rxc8 {[%emt 0:00:01]} f6 {[%emt 0:00:15]} 36. c7 {[%emt 0:00:24]} Kh7 {[%emt 0:00:21]} 37. Rd8 {[%emt 0:00:06]} f5 {[%emt 0:01:26]} 38. c8=Q {[%emt 0:00:08]} fxe4 {[%emt 0:00:42]} 39. Rxe8 {[%emt 0:00:02]} Qf6 {[%emt 0:00:09]} 40. Bxe4+ {[%emt 0:00:12]} 1-0

[Event "African Games-chT 2019"]
[Site "Casablanca"]
[Date "2019.08.25"]
[Round "8.22"]
[White "Traore, Bakary"]
[Black "Khetho, Phemelo"]
[Result "0-1"]
[ECO "C42"]
[WhiteElo "2189"]
[BlackElo "2178"]
[Annotator "NA"]
[PlyCount "78"]
[EventDate "2019.08.24"]
[EventType "team-tourn"]
[EventCountry "MAR"]
[SourceTitle "playchess.com"]
[Source "ChessBase"]
[SourceQuality "1"]
[WhiteTeam "Mali"]
[BlackTeam "Botswana"]
[WhiteTeamCountry "MLI"]
[BlackTeamCountry "BOT"]
[TimeControl "900+10"]

1. e4 {[%emt 0:00:00]} e5 {[%emt 0:00:00]} 2. Nf3 {[%emt 0:00:00]} Nf6 {[%emt 0:00:00]} 3. Nxe5 {[%emt 0:00:02]} d6 {[%emt 0:00:00]} 4. Nf3 {[%emt 0:00:04]} Nxe4 {[%emt 0:00:00]} 5. d4 {[%emt 0:00:02]} d5 {[%emt 0:00:12]} 6. Bd3 {[%emt 0:00:03]} Be7 {[%emt 0:00:19]} 7. O-O {[%emt 0:00:13]} O-O {[%emt 0:00:03]} 8. c4 {[%emt 0:00:06]} c6 {[%emt 0:00:44]} 9. Re1 {[%emt 0:00:06]} Nf6 {[%emt 0:00:03]} 10. h3 {[%emt 0:00:04]} h6 {[%emt 0:00:33]} 11. Nc3 {[%emt 0:00:07]} Be6 {[%emt 0:00:05]} 12. c5 {[%emt 0:00:09]} Nbd7 13. Bf4 {[%emt 0:00:05]} Re8 {[%emt 0:01:16]} 14. b4 {[%emt 0:00:13]} a6 {[%emt 0:00:23]} 15. a4 {[%emt 0:00:08]} Bf8 {[%emt 0:00:09]} 16. Qc2 {[%emt 0:00:18]} Nh5 {[%emt 0:00:18]} 17. Bh2 {[%emt 0:00:04]} Qf6 {[%emt 0:00:06]} 18. Ne5 {[%emt 0:00:28]} Nf4 {[%emt 0:00:17]} 19. Bf1 {[%emt 0:01:14]} Qg5 {[%emt 0:00:21]} 20. Kh1 {[%emt 0:00:34]} Bf5 {[%emt 0:00:25]} 21. Qd1 {[%emt 0:00:34]} Nxe5 {[%emt 0:00:58]} 22. dxe5 {[%emt 0:00:09]} a5 {[%emt 0:00:12]} 23. g4 {[%emt 0:01:56]} Bg6 {[%emt 0:01:16]} 24. Qd2 {[%emt 0:00:47]} Nxh3 {[%emt 0:01:06]} 25. Qxg5 {[%emt 0:00:02]} Nxg5 {[%emt 0:00:01]} 26. f4 {[%emt 0:00:00]} Be4+ {[%emt 0:00:02]} 27. Bg2 {[%emt 0:00:40]} Bxg2+ {[%emt 0:00:25]} 28. Kxg2 {[%emt 0:00:01]} Ne6 {[%emt 0:00:42]} 29. f5 {[%emt 0:00:06]} Ng5 {[%emt 0:00:02]} 30. Rab1 {[%emt 0:00:10]} axb4 {[%emt 0:00:22]} 31. Rxb4 {[%emt 0:00:01]} Bxc5 {[%emt 0:00:16]} 32. Rxb7 {[%emt 0:00:03]} Bd4 {[%emt 0:00:07]} 33. Rc1 {[%emt 0:00:08]} Bxe5 {[%emt 0:00:13]} 34. Bxe5 {[%emt 0:00:20]} Rxe5 {[%emt 0:00:01]} 35. Rc7 {[%emt 0:00:04]} d4 {[%emt 0:00:18]} 36. Nd1 {[%emt 0:00:05]} Rxa4 {[%emt 0:00:09]} 37. R7xc6 {[%emt 0:00:02]} Re2+ {[%emt 0:00:07]} 38. Kf1 {[%emt 0:00:17]} Raa2 {[%emt 0:00:37]} 39. Rd6 {[%emt 0:00:09]} Rh2 {[%emt 0:00:04]} 0-1

[Event "African Games-chT 2019"]
[Site "Casablanca"]
[Date "2019.08.25"]
[Round "8.29"]
[White "Marie, Patrick"]
[Black "Gohil, Mehul"]
[Result "0-1"]
[ECO "C00"]
[WhiteElo "1921"]
[BlackElo "2076"]
[Annotator "NA"]
[PlyCount "74"]
[EventDate "2019.08.24"]
[EventType "team-tourn"]
[EventCountry "MAR"]
[SourceTitle "playchess.com"]
[Source "ChessBase"]
[SourceQuality "1"]
[WhiteTeam "Mauritius"]
[BlackTeam "Kenya"]
[WhiteTeamCountry "MRI"]
[BlackTeamCountry "KEN"]
[TimeControl "900+10"]

1. e4 {[%emt 0:00:00]} e6 {[%emt 0:00:00]} 2. b3 {[%emt 0:00:00]} d5 {[%emt 0:00:09]} 3. Bb2 {[%emt 0:00:00]} Nf6 {[%emt 0:00:13]} 4. Qe2 {[%emt 0:00:15]} Nxe4 {[%emt 0:00:42]} 5. Nc3 {[%emt 0:00:59]} Nxc3 {[%emt 0:00:22]} 6. Bxc3 {[%emt 0:00:04]} d4 {[%emt 0:00:44]} 7. Bb2 {[%emt 0:00:01]} c5 {[%emt 0:00:14]} 8. Nf3 {[%emt 0:00:04]} Nc6 {[%emt 0:00:06]} 9. a3 {[%emt 0:02:11]} Bd6 {[%emt 0:00:12]} 10. g3 {[%emt 0:00:06]} O-O {[%emt 0:00:20]} 11. Bg2 {[%emt 0:00:22]} e5 {[%emt 0:00:20]} 12. d3 {[%emt 0:00:04]} f5 {[%emt 0:01:29]} 13. Nd2 {[%emt 0:00:31]} Bd7 {[%emt 0:00:42]} 14. O-O {[%emt 0:01:24]} Qf6 {[%emt 0:00:22]} 15. Rae1 {[%emt 0:03:29]} Rae8 {[%emt 0:00:12]} 16. Bc1 {[%emt 0:00:10]} h6 {[%emt 0:00:51]} 17. Qf3 {[%emt 0:01:48]} b5 {[%emt 0:02:07]} 18. Qd1 {[%emt 0:02:45]} Kh8 {[%emt 0:00:18]} 19. Nb1 {[%emt 0:00:01]} Re7 {[%emt 0:00:48]} 20. f4 {[%emt 0:01:29]} Rfe8 {[%emt 0:00:19]} 21. Qf3 {[%emt 0:00:26]} e4 {[%emt 0:00:49]} 22. dxe4 {[%emt 0:00:25]} fxe4 {[%emt 0:00:07]} 23. Rxe4 {[%emt 0:00:14]} Rxe4 {[%emt 0:00:07]} 24. Qd3 {[%emt 0:00:12]} Re1 {[%emt 0:01:06]} 25. Qxb5 {[%emt 0:00:44]} Rxf1+ {[%emt 0:00:13]} 26. Qxf1 {[%emt 0:00:03]} Nb8 {[%emt 0:00:57]} 27. Nd2 {[%emt 0:00:11]} Bc6 {[%emt 0:00:08]} 28. Nc4 {[%emt 0:00:20]} Bxg2 {[%emt 0:00:11]} 29. Kxg2 {[%emt 0:00:08]} Bc7 {[%emt 0:00:08]} 30. Qf3 {[%emt 0:00:22]} Qc6 {[%emt 0:00:10]} 31. Bd2 {[%emt 0:00:16]} Qxf3+ {[%emt 0:00:04]} 32. Kxf3 {[%emt 0:00:03]} Nd7 {[%emt 0:00:09]} 33. Nb2 {[%emt 0:00:28]} Nb6 {[%emt 0:00:07]} 34. Nd3 {[%emt 0:00:03]} Bd6 {[%emt 0:00:05]} 35. Nf2 {[%emt 0:00:10]} c4 {[%emt 0:00:08]} 36. b4 {[%emt 0:00:10]} c3 {[%emt 0:00:08]} 37. Ne4 {[%emt 0:01:00]} Rxe4 {[%emt 0:00:14]} 0-1

[Event "African Games-chT 2019"]
[Site "Casablanca"]
[Date "2019.08.25"]
[Round "8.30"]
[White "Sang, Ricky"]
[Black "Naipal, Hoolan"]
[Result "1/2-1/2"]
[ECO "A45"]
[WhiteElo "1971"]
[BlackElo "1785"]
[Annotator "NA"]
[PlyCount "91"]
[EventDate "2019.08.24"]
[EventType "team-tourn"]
[EventCountry "MAR"]
[SourceTitle "playchess.com"]
[Source "ChessBase"]
[SourceQuality "1"]
[WhiteTeam "Kenya"]
[BlackTeam "Mauritius"]
[WhiteTeamCountry "KEN"]
[BlackTeamCountry "MRI"]
[TimeControl "900+10"]

1. d4 {[%emt 0:00:00]} Nf6 {[%emt 0:00:00]} 2. Bf4 {[%emt 0:00:00]} g6 {[%emt 0:00:00]} 3. Nc3 {[%emt 0:00:00]} Bg7 {[%emt 0:00:06]} 4. e4 {[%emt 0:00:03]} d6 {[%emt 0:00:02]} 5. h3 {[%emt 0:00:12]} O-O {[%emt 0:00:03]} 6. Nf3 {[%emt 0:00:03]} Re8 {[%emt 0:00:22]} 7. Bc4 {[%emt 0:00:29]} Nfd7 {[%emt 0:01:36]} 8. Ng5 {[%emt 0:01:54]} Rf8 {[%emt 0:00:02]} 9. O-O {[%emt 0:00:07]} e5 {[%emt 0:00:16]} 10. dxe5 {[%emt 0:00:17]} dxe5 {[%emt 0:00:02]} 11. Be3 {[%emt 0:00:13]} h6 {[%emt 0:00:43]} 12. Nf3 {[%emt 0:00:07]} Nb6 {[%emt 0:00:21]} 13. Bb3 {[%emt 0:00:47]} c6 {[%emt 0:01:39]} 14. Qe2 {[%emt 0:00:21]} Qe7 {[%emt 0:00:32]} 15. a4 {[%emt 0:00:22]} Be6 {[%emt 0:00:30]} 16. a5 {[%emt 0:00:49]} N6d7 {[%emt 0:00:27]} 17. Bc4 {[%emt 0:00:44]} Bxc4 {[%emt 0:00:34]} 18. Qxc4 {[%emt 0:00:05]} Na6 {[%emt 0:00:18]} 19. Rfd1 {[%emt 0:00:31]} Rfd8 {[%emt 0:00:04]} 20. Rd2 {[%emt 0:02:29]} Ndc5 {[%emt 0:03:11]} 21. Rad1 {[%emt 0:00:38]} Rxd2 {[%emt 0:00:13]} 22. Rxd2 {[%emt 0:00:04]} Ne6 {[%emt 0:00:16]} 23. Ne2 {[%emt 0:02:27]} Nac7 {[%emt 0:03:15]} 24. c3 {[%emt 0:00:59]} Kh7 {[%emt 0:01:57]} 25. Ng3 {[%emt 0:00:19]} h5 {[%emt 0:01:03]} 26. h4 {[%emt 0:00:32]} Ne8 {[%emt 0:01:03]} 27. Qb3 {[%emt 0:00:55]} Nf6 {[%emt 0:00:15]} 28. Ng5+ {[%emt 0:01:43]} Nxg5 {[%emt 0:00:19]} 29. Bxg5 {[%emt 0:00:03]} Bh6 {[%emt 0:00:23]} 30. Bxh6 {[%emt 0:00:29]} Kxh6 {[%emt 0:00:02]} 31. Qd1 {[%emt 0:00:07]} Kg7 {[%emt 0:00:17]} 32. Rd6 {[%emt 0:01:01]} Rc8 {[%emt 0:00:15]} 33. b4 {[%emt 0:00:05]} Rc7 {[%emt 0:00:01]} 34. Qd2 {[%emt 0:00:05]} Ne8 {[%emt 0:00:18]} 35. Rd8 {[%emt 0:00:14]} a6 {[%emt 0:00:10]} 36. Nf1 {[%emt 0:00:07]} c5 {[%emt 0:00:08]} 37. g3 {[%emt 0:00:10]} cxb4 {[%emt 0:00:01]} 38. cxb4 {[%emt 0:00:03]} Nf6 39. f3 {[%emt 0:00:23]} Rd7 {[%emt 0:00:32]} 40. Rxd7 {[%emt 0:00:07]} Qxd7 {[%emt 0:00:01]} 41. Qxd7 {[%emt 0:00:24]} Nxd7 {[%emt 0:00:02]} 42. Ne3 {[%emt 0:00:08]} b6 {[%emt 0:00:01]} 43. Nc4 {[%emt 0:00:15]} bxa5 {[%emt 0:00:02]} 44. bxa5 {[%emt 0:00:02]} f6 {[%emt 0:00:14]} 45. Kf2 {[%emt 0:00:02]} Nc5 {[%emt 0:00:20]} 46. Ke1 1/2-1/2

[Event "African Games-chT 2019"]
[Site "Casablanca"]
[Date "2019.08.25"]
[Round "8.31"]
[White "Essoo, Uvika"]
[Black "Ndirangu, Joyce Nyaruai"]
[Result "1-0"]
[ECO "D02"]
[WhiteElo "1187"]
[BlackElo "1662"]
[Annotator "NA"]
[PlyCount "109"]
[EventDate "2019.08.24"]
[EventType "team-tourn"]
[EventCountry "MAR"]
[SourceTitle "playchess.com"]
[Source "ChessBase"]
[SourceQuality "1"]
[WhiteTeam "Mauritius"]
[BlackTeam "Kenya"]
[WhiteTeamCountry "MRI"]
[BlackTeamCountry "KEN"]
[TimeControl "900+10"]

1. d4 {[%emt 0:00:00]} d5 {[%emt 0:00:00]} 2. Bf4 {[%emt 0:00:00]} Nf6 {[%emt 0:00:00]} 3. Nf3 {[%emt 0:00:00]} Bf5 {[%emt 0:00:02]} 4. e3 {[%emt 0:00:12]} c5 {[%emt 0:00:02]} 5. c3 {[%emt 0:00:28]} Nbd7 {[%emt 0:00:06]} 6. Bd3 {[%emt 0:00:07]} Ne4 {[%emt 0:00:15]} 7. O-O {[%emt 0:00:27]} Ndf6 {[%emt 0:00:10]} 8. Nbd2 {[%emt 0:00:23]} e6 {[%emt 0:00:03]} 9. Ne5 {[%emt 0:01:10]} Nxd2 {[%emt 0:00:10]} 10. Qxd2 {[%emt 0:00:08]} Bd6 {[%emt 0:00:17]} 11. Rfe1 {[%emt 0:00:08]} Ne4 {[%emt 0:00:11]} 12. Qc2 {[%emt 0:01:01]} Bxe5 {[%emt 0:01:14]} 13. Bxe5 {[%emt 0:00:18]} f6 {[%emt 0:01:24]} 14. Bf4 {[%emt 0:00:33]} g5 {[%emt 0:00:05]} 15. Bg3 {[%emt 0:02:16]} Nxg3 {[%emt 0:00:05]} 16. fxg3 {[%emt 0:00:15]} Bxd3 {[%emt 0:00:05]} 17. Qxd3 {[%emt 0:00:05]} Qd6 {[%emt 0:00:43]} 18. Rf1 {[%emt 0:00:24]} O-O {[%emt 0:00:23]} 19. Rf2 {[%emt 0:00:39]} Rf7 {[%emt 0:00:04]} 20. Raf1 {[%emt 0:00:20]} Raf8 {[%emt 0:00:09]} 21. e4 {[%emt 0:00:46]} dxe4 {[%emt 0:01:14]} 22. Qxe4 {[%emt 0:00:28]} f5 {[%emt 0:00:37]} 23. Qe5 {[%emt 0:00:23]} Qxe5 {[%emt 0:01:50]} 24. dxe5 {[%emt 0:00:10]} Kg7 {[%emt 0:01:07]} 25. Rd1 {[%emt 0:00:06]} Kg6 {[%emt 0:00:09]} 26. Rd6 {[%emt 0:00:49]} Re7 {[%emt 0:00:06]} 27. h4 {[%emt 0:00:23]} g4 {[%emt 0:00:18]} 28. Rfd2 {[%emt 0:00:32]} h5 {[%emt 0:00:54]} 29. Rd7 {[%emt 0:00:13]} Rxd7 {[%emt 0:00:03]} 30. Rxd7 {[%emt 0:00:04]} Rf7 {[%emt 0:00:03]} 31. Rd6 {[%emt 0:00:30]} Re7 {[%emt 0:00:02]} 32. b4 {[%emt 0:00:15]} Kf7 {[%emt 0:00:06]} 33. Kf2 {[%emt 0:00:31]} Rc7 {[%emt 0:00:19]} 34. c4 {[%emt 0:00:39]} Ke7 {[%emt 0:00:21]} 35. Ke3 {[%emt 0:00:20]} Rd7 {[%emt 0:00:00]} 36. Rxd7+ Kxd7 37. b5 {[%emt 0:01:02]} Kc7 {[%emt 0:03:59]} 38. a4 {[%emt 0:00:12]} Kb8 {[%emt 0:00:15]} 39. a5 {[%emt 0:00:07]} Kc7 {[%emt 0:00:13]} 40. Kf4 {[%emt 0:00:22]} Kd7 {[%emt 0:00:04]} 41. Kg5 {[%emt 0:00:05]} Ke7 {[%emt 0:00:01]} 42. Kxh5 {[%emt 0:00:05]} Ke8 {[%emt 0:00:10]} 43. Kg6 {[%emt 0:00:06]} Ke7 {[%emt 0:00:02]} 44. Kg7 {[%emt 0:00:02]} a6 {[%emt 0:00:06]} 45. h5 {[%emt 0:00:06]} axb5 {[%emt 0:00:02]} 46. h6 {[%emt 0:00:02]} bxc4 {[%emt 0:00:02]} 47. h7 {[%emt 0:00:12]} Kd7 {[%emt 0:00:03]} 48. h8=Q {[%emt 0:00:26]} Kc6 {[%emt 0:00:14]} 49. Kf7 {[%emt 0:00:13]} Kb5 {[%emt 0:00:14]} 50. Qc8 {[%emt 0:00:18]} Kxa5 {[%emt 0:00:01]} 51. Qxb7 {[%emt 0:00:31] Kb4 Qb6+ Kc3 Qxc5 Kd3 Qd6+ Ke4 Qxe6} c3 {[%emt 0:00:00]} 52. Qc6 {[%emt 0:00:03] Kd3 e6} c2 {[%emt 0:00:00] e7 Kd2 e8=Q c1=Q Qxc1+ Kxc1 Qe1+ Kc2} 53. Kxe6 {[%emt 0:00:28] Kd3 Ke5} f4 {[%emt 0:00:00]} 54. gxf4 {[%emt 0:00:05]} g3 {[%emt 0:00:03] Qxg3+ Ke2 Ke4 Kf1 Qe3 Kxg2 Qa3 Kf2} 55. f5 {[%emt 0:00:27] Kf3+} 1-0

[Event "African Games-chT 2019"]
[Site "Casablanca"]
[Date "2019.08.25"]
[Round "8.32"]
[White "Mongeli, Sasha"]
[Black "Beekhy, Aamirah"]
[Result "1-0"]
[ECO "B08"]
[WhiteElo "1527"]
[BlackElo "1373"]
[Annotator "NA"]
[PlyCount "54"]
[EventDate "2019.08.24"]
[EventType "team-tourn"]
[EventCountry "MAR"]
[SourceTitle "playchess.com"]
[Source "ChessBase"]
[SourceQuality "1"]
[WhiteTeam "Kenya"]
[BlackTeam "Mauritius"]
[WhiteTeamCountry "KEN"]
[BlackTeamCountry "MRI"]
[TimeControl "900+10"]

1. e4 {[%emt 0:00:00]} d6 {[%emt 0:00:00]} 2. d4 {[%emt 0:00:00]} Nf6 {[%emt 0:00:00]} 3. Nc3 {[%emt 0:00:02]} g6 {[%emt 0:00:00]} 4. Nf3 {[%emt 0:00:06]} Bg7 {[%emt 0:00:01]} 5. Bd3 {[%emt 0:00:09]} O-O {[%emt 0:00:02]} 6. h3 {[%emt 0:00:05]} Re8 {[%emt 0:00:21]} 7. O-O {[%emt 0:00:04]} Nbd7 {[%emt 0:00:24]} 8. Re1 {[%emt 0:00:05]} c5 {[%emt 0:00:20]} 9. Be3 {[%emt 0:00:24]} cxd4 {[%emt 0:01:17]} 10. Bxd4 {[%emt 0:00:07]} Nc5 {[%emt 0:00:19]} 11. a3 {[%emt 0:03:23]} Nxd3 {[%emt 0:01:30]} 12. cxd3 {[%emt 0:00:17]} b6 13. b4 {[%emt 0:00:31]} Bb7 {[%emt 0:01:51]} 14. Rc1 {[%emt 0:00:31]} Rc8 {[%emt 0:01:39]} 15. Nh2 {[%emt 0:00:49]} Nh5 {[%emt 0:02:00]} 16. Bxg7 {[%emt 0:00:11]} Kxg7 {[%emt 0:00:16]} 17. Qd2 {[%emt 0:00:41]} Kg8 {[%emt 0:01:39]} 18. Ng4 {[%emt 0:00:58]} e5 {[%emt 0:02:17]} 19. Qe3 {[%emt 0:01:55]} Nf6 {[%emt 0:01:32]} 20. Qf3 {[%emt 0:00:35]} Nxg4 {[%emt 0:00:34]} 21. Qxg4 {[%emt 0:00:03]} Qf6 {[%emt 0:00:38]} 22. Rc2 {[%emt 0:01:02]} a6 {[%emt 0:00:18]} 23. Rec1 {[%emt 0:00:05]} Qe6 {[%emt 0:00:48]} 24. Qxe6 {[%emt 0:00:22]} Rxe6 {[%emt 0:00:04]} 25. Na4 {[%emt 0:00:19]} Rxc2 {[%emt 0:00:31]} 26. Rxc2 d5 {[%emt 0:00:28]} 27. Rc7 {[%emt 0:00:23]} Bc6 1-0